[Event "Early-Titled-Tuesday-Blitz-October-10-2023"]
[Site "Chess.com"]
[Date "2023.10.10"]
[Round "2"]
[White "zverr1"]
[Black "Pawnpusher1245"]
[Result "1-0"]
[WhiteElo "2508"]
[BlackElo "2258"]
[TimeControl "180+1"]
[EndTime "8:15:39 PDT"]
[Termination "zverr1 won by resignation"]

1. d4 {[%clk 0:03:00.9]} 1... d5 {[%clk 0:02:58.5]} 2. c4 {[%clk 0:03:01.2]}
2... e6 {[%clk 0:02:57.8]} 3. Nf3 {[%clk 0:03:01.7]} 3... Nf6 {[%clk 0:02:56.3]}
4. g3 {[%clk 0:03:02.3]} 4... Be7 {[%clk 0:02:53.7]} 5. Bg2 {[%clk 0:03:02.8]}
5... O-O {[%clk 0:02:53.7]} 6. O-O {[%clk 0:03:03.7]} 6... dxc4 {[%clk
0:02:53.1]} 7. Qc2 {[%clk 0:03:03.8]} 7... a6 {[%clk 0:02:53.2]} 8. a4 {[%clk
0:03:04.5]} 8... Bd7 {[%clk 0:02:52.8]} 9. Bg5 {[%clk 0:03:05.2]} 9... Bc6
{[%clk 0:02:51.4]} 10. Bxf6 {[%clk 0:03:05.8]} 10... Bxf6 {[%clk 0:02:51]} 11.
Rd1 {[%clk 0:03:06.7]} 11... Qe7 {[%clk 0:02:35]} 12. e4 {[%clk 0:02:58.5]}
12... e5 {[%clk 0:02:34.1]} 13. d5 {[%clk 0:02:49.2]} 13... Bd7 {[%clk
0:02:32.6]} 14. Nbd2 {[%clk 0:02:47]} 14... Bg4 {[%clk 0:02:22.3]} 15. Nxc4
{[%clk 0:02:43.5]} 15... Nd7 {[%clk 0:02:19]} 16. Ne3 {[%clk 0:02:42.3]} 16...
Bxf3 {[%clk 0:02:17.9]} 17. Bxf3 {[%clk 0:02:43.2]} 17... Rfc8 {[%clk
0:02:15.3]} 18. Bg4 {[%clk 0:02:40.6]} 18... Qd8 {[%clk 0:01:46.5]} 19. Rac1
{[%clk 0:02:33.5]} 19... Be7 {[%clk 0:01:44.9]} 20. Qc4 {[%clk 0:02:20.1]} 20...
Bd6 {[%clk 0:01:34.9]} 21. b4 {[%clk 0:02:18.5]} 21... g6 {[%clk 0:01:15.2]} 22.
h4 {[%clk 0:02:16.4]} 22... c6 {[%clk 0:01:09.1]} 23. dxc6 {[%clk 0:02:09.6]}
23... Rxc6 {[%clk 0:01:09]} 24. Qxc6 {[%clk 0:02:06.4]} 24... bxc6 {[%clk
0:01:06.8]} 25. Rxd6 {[%clk 0:02:07.3]} 25... Qb6 {[%clk 0:00:58.7]} 26. Bxd7
{[%clk 0:02:01.6]} 26... Qxb4 {[%clk 0:00:57.5]} 27. Rdxc6 {[%clk 0:01:59.2]}
27... Kg7 {[%clk 0:00:50.9]} 28. Rc7 {[%clk 0:01:56.7]} 28... Rd8 {[%clk
0:00:31.9]} 29. Be6 {[%clk 0:01:54.7]} 29... Qxe4 {[%clk 0:00:29.7]} 30. Rxf7+
{[%clk 0:01:52.1]} 30... Kh6 {[%clk 0:00:21.5]} 31. Ng4+ {[%clk 0:01:51.2]} 1-0

[Event "Early-Titled-Tuesday-Blitz-October-10-2023"]
[Site "Chess.com"]
[Date "2023.10.10"]
[Round "2"]
[White "BlueWizzard"]
[Black "Grossboss19"]
[Result "1-0"]
[WhiteElo "2918"]
[BlackElo "2522"]
[TimeControl "180+1"]
[EndTime "8:15:45 PDT"]
[Termination "BlueWizzard won by resignation"]

1. d4 {[%clk 0:03:00.9]} 1... d5 {[%clk 0:02:56]} 2. Nc3 {[%clk 0:03:01.2]} 2...
Nf6 {[%clk 0:02:51.7]} 3. Bg5 {[%clk 0:03:01.2]} 3... Nbd7 {[%clk 0:02:43.2]} 4.
Nf3 {[%clk 0:03:00.8]} 4... c6 {[%clk 0:02:40.4]} 5. Qd3 {[%clk 0:03:00.3]} 5...
h6 {[%clk 0:02:39.6]} 6. Bf4 {[%clk 0:03:00.4]} 6... e6 {[%clk 0:02:39.4]} 7. e4
{[%clk 0:02:58.5]} 7... dxe4 {[%clk 0:02:38.2]} 8. Nxe4 {[%clk 0:02:59.4]} 8...
Nxe4 {[%clk 0:02:36.8]} 9. Qxe4 {[%clk 0:03:00.3]} 9... c5 {[%clk 0:02:36.4]}
10. Bd3 {[%clk 0:02:56.2]} 10... Nf6 {[%clk 0:02:33.9]} 11. Qe2 {[%clk
0:02:53.1]} 11... Nd5 {[%clk 0:02:20.1]} 12. Bd2 {[%clk 0:02:38.2]} 12... Be7
{[%clk 0:02:14.9]} 13. dxc5 {[%clk 0:02:31.4]} 13... Bxc5 {[%clk 0:02:15.8]} 14.
O-O-O {[%clk 0:02:31.5]} 14... Bd7 {[%clk 0:02:01]} 15. Ne5 {[%clk 0:02:29.9]}
15... a6 {[%clk 0:01:54]} 16. Qh5 {[%clk 0:02:20.6]} 16... O-O {[%clk
0:01:37.5]} 17. Bxh6 {[%clk 0:01:53.9]} 17... gxh6 {[%clk 0:01:34.5]} 18. Qxh6
{[%clk 0:01:53.2]} 18... f5 {[%clk 0:01:30.6]} 19. Bc4 {[%clk 0:01:41.1]} 19...
Bb5 {[%clk 0:00:36.1]} 20. Qg6+ {[%clk 0:01:26]} 20... Kh8 {[%clk 0:00:35.7]}
21. Qh6+ {[%clk 0:01:23.9]} 21... Kg8 {[%clk 0:00:35.9]} 22. Rd3 {[%clk
0:01:15.8]} 22... f4 {[%clk 0:00:29.2]} 23. Qg6+ {[%clk 0:01:14.7]} 23... Kh8
{[%clk 0:00:29]} 24. Rh3+ {[%clk 0:01:15.6]} 1-0

[Event "Early-Titled-Tuesday-Blitz-October-10-2023"]
[Site "Chess.com"]
[Date "2023.10.10"]
[Round "2"]
[White "SirStrateg"]
[Black "zozik"]
[Result "1-0"]
[WhiteElo "2579"]
[BlackElo "2338"]
[TimeControl "180+1"]
[EndTime "8:15:47 PDT"]
[Termination "SirStrateg won by resignation"]

1. e3 {[%clk 0:02:18.4]} 1... e6 {[%clk 0:02:59.6]} 2. b3 {[%clk 0:02:18.7]}
2... d5 {[%clk 0:03:00.1]} 3. Bb2 {[%clk 0:02:19.3]} 3... Nf6 {[%clk 0:03:00.3]}
4. f4 {[%clk 0:02:19.8]} 4... Bd6 {[%clk 0:02:59.9]} 5. Nf3 {[%clk 0:02:20.1]}
5... O-O {[%clk 0:03:00.4]} 6. Bd3 {[%clk 0:02:20.5]} 6... c5 {[%clk 0:03:00.4]}
7. O-O {[%clk 0:02:20.3]} 7... Nc6 {[%clk 0:02:58.9]} 8. Nc3 {[%clk 0:02:20.8]}
8... a6 {[%clk 0:02:52.6]} 9. a3 {[%clk 0:02:20.9]} 9... b5 {[%clk 0:02:51.8]}
10. Qe1 {[%clk 0:02:20.2]} 10... b4 {[%clk 0:02:36.6]} 11. Na4 {[%clk
0:02:16.5]} 11... bxa3 {[%clk 0:02:27.6]} 12. Bxa3 {[%clk 0:02:17]} 12... c4
{[%clk 0:02:05.1]} 13. Bxd6 {[%clk 0:02:06.6]} 13... Qxd6 {[%clk 0:02:06]} 14.
bxc4 {[%clk 0:02:07.2]} 14... dxc4 {[%clk 0:02:05.7]} 15. Bxc4 {[%clk
0:02:07.3]} 15... Qb4 {[%clk 0:02:04.8]} 16. Bd3 {[%clk 0:02:05.1]} 16... a5
{[%clk 0:01:53.4]} 17. Qh4 {[%clk 0:02:01.7]} 17... Ba6 {[%clk 0:01:50.9]} 18.
Rfb1 {[%clk 0:02:01.7]} 18... Qd6 {[%clk 0:01:39.7]} 19. Bxa6 {[%clk 0:01:58.5]}
19... Rxa6 {[%clk 0:01:40.6]} 20. Nc3 {[%clk 0:01:50.6]} 20... Nb4 {[%clk
0:01:38.3]} 21. Nd4 {[%clk 0:01:50.6]} 21... Nxc2 {[%clk 0:01:25.9]} 22. Ncb5
{[%clk 0:01:40.4]} 22... Qd5 {[%clk 0:01:06.2]} 23. Nxc2 {[%clk 0:01:38.1]}
23... Qxd2 {[%clk 0:01:06]} 24. Qf2 {[%clk 0:01:36.7]} 24... Qd3 {[%clk
0:01:04.7]} 25. Ra3 {[%clk 0:01:27.8]} 25... Qe4 {[%clk 0:00:56.5]} 26. Nbd4
{[%clk 0:01:20.7]} 26... e5 {[%clk 0:00:51.9]} 27. fxe5 {[%clk 0:01:19.9]} 27...
Ng4 {[%clk 0:00:45.4]} 28. Qf4 {[%clk 0:01:18.3]} 1-0

[Event "Early-Titled-Tuesday-Blitz-October-10-2023"]
[Site "Chess.com"]
[Date "2023.10.10"]
[Round "2"]
[White "inagreV"]
[Black "ural58"]
[Result "0-1"]
[WhiteElo "2271"]
[BlackElo "2507"]
[TimeControl "180+1"]
[EndTime "8:15:57 PDT"]
[Termination "ural58 won by resignation"]

1. e4 {[%clk 0:03:00.9]} 1... d5 {[%clk 0:01:58.9]} 2. exd5 {[%clk 0:03:00.2]}
2... Qxd5 {[%clk 0:01:56.5]} 3. Nc3 {[%clk 0:03:00]} 3... Qa5 {[%clk 0:01:56.3]}
4. d4 {[%clk 0:02:59.7]} 4... Nf6 {[%clk 0:01:56.6]} 5. Nf3 {[%clk 0:02:58.9]}
5... Nc6 {[%clk 0:01:56.4]} 6. Bb5 {[%clk 0:02:58.2]} 6... Ne4 {[%clk
0:01:55.9]} 7. O-O {[%clk 0:02:53.4]} 7... Nxc3 {[%clk 0:01:54.4]} 8. Bxc6+
{[%clk 0:02:53.2]} 8... bxc6 {[%clk 0:01:55]} 9. bxc3 {[%clk 0:02:51.3]} 9...
Bf5 {[%clk 0:01:48.8]} 10. Ne5 {[%clk 0:02:43.5]} 10... Qxc3 {[%clk 0:01:41]}
11. Be3 {[%clk 0:02:39.1]} 11... f6 {[%clk 0:01:35.7]} 12. Qf3 {[%clk
0:02:25.8]} 12... Qxc2 {[%clk 0:01:22.6]} 13. Rac1 {[%clk 0:02:02.1]} 13... Qe4
{[%clk 0:01:18.7]} 14. Qxe4 {[%clk 0:02:02.6]} 14... Bxe4 {[%clk 0:01:18.4]} 15.
Nxc6 {[%clk 0:02:03]} 15... e6 {[%clk 0:01:14.2]} 16. Rfe1 {[%clk 0:02:02.2]}
16... Bd5 {[%clk 0:01:11.2]} 17. Bf4 {[%clk 0:01:54.6]} 17... Kd7 {[%clk
0:01:10.3]} 18. Na5 {[%clk 0:01:34.7]} 18... Bd6 {[%clk 0:01:10.1]} 19. Bxd6
{[%clk 0:01:30.4]} 19... cxd6 {[%clk 0:01:10.2]} 20. Re3 {[%clk 0:01:19.8]}
20... Rhc8 {[%clk 0:01:09.3]} 21. Rec3 {[%clk 0:01:18.2]} 21... Rxc3 {[%clk
0:01:08.3]} 22. Rxc3 {[%clk 0:01:19.1]} 22... Bxa2 {[%clk 0:01:00.9]} 23. Rg3
{[%clk 0:01:15.3]} 23... g5 {[%clk 0:00:55.6]} 24. h4 {[%clk 0:01:15.1]} 24...
h6 {[%clk 0:00:54.8]} 25. hxg5 {[%clk 0:01:15.1]} 25... hxg5 {[%clk 0:00:54.9]}
26. Rh3 {[%clk 0:01:15.9]} 26... Re8 {[%clk 0:00:50.3]} 27. Rh7+ {[%clk
0:01:11.6]} 27... Re7 {[%clk 0:00:48.6]} 28. Rxe7+ {[%clk 0:01:12.3]} 28... Kxe7
{[%clk 0:00:48.6]} 29. Nc6+ {[%clk 0:01:13.2]} 29... Kd7 {[%clk 0:00:48.5]} 30.
Nxa7 {[%clk 0:01:14.1]} 30... Bc4 {[%clk 0:00:48.3]} 31. f4 {[%clk 0:01:07.1]}
31... gxf4 {[%clk 0:00:47.9]} 32. Kf2 {[%clk 0:01:07.5]} 32... Kc7 {[%clk
0:00:48]} 33. Kf3 {[%clk 0:01:07.3]} 33... Kb7 {[%clk 0:00:48.2]} 0-1

[Event "Early-Titled-Tuesday-Blitz-October-10-2023"]
[Site "Chess.com"]
[Date "2023.10.10"]
[Round "2"]
[White "MITerryble"]
[Black "Zavgorodniy_Sergiy"]
[Result "1-0"]
[WhiteElo "3013"]
[BlackElo "2622"]
[TimeControl "180+1"]
[EndTime "8:16:02 PDT"]
[Termination "MITerryble won by resignation"]

1. d4 {[%clk 0:02:55.8]} 1... Nf6 {[%clk 0:02:59.9]} 2. Nf3 {[%clk 0:02:55.1]}
2... e6 {[%clk 0:03:00.5]} 3. c4 {[%clk 0:02:55]} 3... Bb4+ {[%clk 0:03:00.3]}
4. Bd2 {[%clk 0:02:54.7]} 4... Qe7 {[%clk 0:03:00]} 5. g3 {[%clk 0:02:50.5]}
5... Nc6 {[%clk 0:02:59.5]} 6. Nc3 {[%clk 0:02:49.3]} 6... Bxc3 {[%clk
0:02:58.8]} 7. Bxc3 {[%clk 0:02:49.5]} 7... d6 {[%clk 0:02:59.4]} 8. Bg2 {[%clk
0:02:49.2]} 8... O-O {[%clk 0:02:58.6]} 9. Qc2 {[%clk 0:02:47.4]} 9... e5 {[%clk
0:02:58.5]} 10. O-O {[%clk 0:02:43.3]} 10... Bg4 {[%clk 0:02:57.4]} 11. d5
{[%clk 0:02:43.6]} 11... Nb8 {[%clk 0:02:57.2]} 12. Nh4 {[%clk 0:02:34.6]} 12...
c5 {[%clk 0:02:50.3]} 13. dxc6 {[%clk 0:02:15.4]} 13... Nxc6 {[%clk 0:02:50.2]}
14. Rfd1 {[%clk 0:02:08.4]} 14... Rac8 {[%clk 0:02:49.2]} 15. Rac1 {[%clk
0:02:07.2]} 15... Rfd8 {[%clk 0:02:48.6]} 16. Nf5 {[%clk 0:01:59.9]} 16... Bxf5
{[%clk 0:02:29.5]} 17. Qxf5 {[%clk 0:02:00.8]} 17... a5 {[%clk 0:02:28.7]} 18.
b3 {[%clk 0:01:51.7]} 18... b6 {[%clk 0:02:24.8]} 19. Rd2 {[%clk 0:01:38.3]}
19... g6 {[%clk 0:02:13.5]} 20. Qd3 {[%clk 0:01:28.6]} 20... Qe6 {[%clk
0:02:07.4]} 21. Rcd1 {[%clk 0:01:23.5]} 21... Ne7 {[%clk 0:02:06.4]} 22. Bb2
{[%clk 0:01:21.8]} 22... d5 {[%clk 0:02:02]} 23. cxd5 {[%clk 0:01:19.6]} 23...
Nexd5 {[%clk 0:02:01.4]} 24. Qb5 {[%clk 0:01:11.3]} 24... Rc5 {[%clk 0:01:45.3]}
25. Qa6 {[%clk 0:01:10.6]} 25... Re8 {[%clk 0:01:39.6]} 26. Qb7 {[%clk
0:00:56.5]} 26... e4 {[%clk 0:01:09.8]} 27. Bxf6 {[%clk 0:00:51.6]} 27... Nxf6
{[%clk 0:01:10.7]} 28. Rd6 {[%clk 0:00:51.8]} 28... Qf5 {[%clk 0:01:11.2]} 29.
Qxb6 {[%clk 0:00:43.6]} 29... Rc2 {[%clk 0:01:11.2]} 30. Rxf6 {[%clk 0:00:42.8]}
1-0

[Event "Early-Titled-Tuesday-Blitz-October-10-2023"]
[Site "Chess.com"]
[Date "2023.10.10"]
[Round "2"]
[White "feuervogel1000000"]
[Black "nitpicker"]
[Result "1-0"]
[WhiteElo "2502"]
[BlackElo "2255"]
[TimeControl "180+1"]
[EndTime "8:16:02 PDT"]
[Termination "feuervogel1000000 won on time"]

1. e4 {[%clk 0:03:00.9]} 1... c5 {[%clk 0:02:59]} 2. Nf3 {[%clk 0:02:59.6]} 2...
Nc6 {[%clk 0:02:59.1]} 3. Bb5 {[%clk 0:02:58.4]} 3... d6 {[%clk 0:02:59.3]} 4.
O-O {[%clk 0:02:44.9]} 4... e6 {[%clk 0:02:47.2]} 5. c3 {[%clk 0:02:40.3]} 5...
g5 {[%clk 0:02:41.5]} 6. d4 {[%clk 0:02:37.6]} 6... g4 {[%clk 0:02:41]} 7. Ne1
{[%clk 0:02:36.2]} 7... h5 {[%clk 0:02:14]} 8. d5 {[%clk 0:02:29.1]} 8... a6
{[%clk 0:02:13.7]} 9. Ba4 {[%clk 0:02:24.5]} 9... b5 {[%clk 0:02:11.1]} 10. dxc6
{[%clk 0:02:23.7]} 10... bxa4 {[%clk 0:02:10.7]} 11. Qxa4 {[%clk 0:02:24.6]}
11... Qc7 {[%clk 0:02:10.4]} 12. Na3 {[%clk 0:02:17.7]} 12... Rb8 {[%clk
0:02:04.1]} 13. Nc4 {[%clk 0:02:14.9]} 13... Rb5 {[%clk 0:01:53.4]} 14. Bf4
{[%clk 0:02:09]} 14... Qxc6 {[%clk 0:01:44.4]} 15. Rd1 {[%clk 0:02:08]} 15... e5
{[%clk 0:01:36.9]} 16. Bg5 {[%clk 0:02:01.7]} 16... Bd7 {[%clk 0:01:31.2]} 17.
Nd3 {[%clk 0:01:57.7]} 17... f6 {[%clk 0:01:07.9]} 18. Bh4 {[%clk 0:01:57.5]}
18... Be7 {[%clk 0:01:00.9]} 19. Ne3 {[%clk 0:01:52.4]} 19... Nh6 {[%clk
0:00:29.2]} 20. Nd5 {[%clk 0:01:48.6]} 20... Kf7 {[%clk 0:00:27.3]} 21. f4
{[%clk 0:01:35.8]} 21... exf4 {[%clk 0:00:23.2]} 22. Rxf4 {[%clk 0:01:34.9]}
22... Rb7 {[%clk 0:00:10.5]} 23. Qxc6 {[%clk 0:01:29.8]} 23... Bxc6 {[%clk
0:00:10.4]} 24. Nxf6 {[%clk 0:01:30.7]} 24... Bxf6 {[%clk 0:00:08.7]} 25. Bxf6
{[%clk 0:01:31.6]} 25... Kg6 {[%clk 0:00:07.8]} 26. Bxh8 {[%clk 0:01:31.2]} 1-0

[Event "Early-Titled-Tuesday-Blitz-October-10-2023"]
[Site "Chess.com"]
[Date "2023.10.10"]
[Round "2"]
[White "Cambek64"]
[Black "FMStan15"]
[Result "1-0"]
[WhiteElo "2442"]
[BlackElo "2110"]
[TimeControl "180+1"]
[EndTime "8:16:04 PDT"]
[Termination "Cambek64 won by resignation"]

1. e4 {[%clk 0:03:00.9]} 1... e6 {[%clk 0:02:52.5]} 2. d3 {[%clk 0:02:58.7]}
2... d5 {[%clk 0:02:52.4]} 3. Qe2 {[%clk 0:02:59.1]} 3... d4 {[%clk 0:02:51.1]}
4. e5 {[%clk 0:02:57.9]} 4... c5 {[%clk 0:02:50.9]} 5. f4 {[%clk 0:02:58.4]}
5... Nc6 {[%clk 0:02:51.1]} 6. Nf3 {[%clk 0:02:57.8]} 6... Nge7 {[%clk
0:02:50.9]} 7. g3 {[%clk 0:02:58.4]} 7... Nd5 {[%clk 0:02:51.1]} 8. Bg2 {[%clk
0:02:59]} 8... Be7 {[%clk 0:02:50.5]} 9. O-O {[%clk 0:02:59]} 9... O-O {[%clk
0:02:50.4]} 10. c4 {[%clk 0:02:59.5]} 10... dxc3 {[%clk 0:02:49.1]} 11. bxc3
{[%clk 0:02:58.7]} 11... Bd7 {[%clk 0:02:46.6]} 12. Nbd2 {[%clk 0:02:57.9]}
12... b5 {[%clk 0:02:44.7]} 13. Ne4 {[%clk 0:02:56.1]} 13... Qb6 {[%clk
0:02:41.1]} 14. Be3 {[%clk 0:02:55]} 14... f5 {[%clk 0:02:35]} 15. exf6 {[%clk
0:02:53.9]} 15... Nxf6 {[%clk 0:02:34.8]} 16. Nfg5 {[%clk 0:02:48.2]} 16... Nxe4
{[%clk 0:02:32.4]} 17. Bxe4 {[%clk 0:02:44.7]} 17... Bxg5 {[%clk 0:02:30.4]} 18.
fxg5 {[%clk 0:02:45.1]} 18... Ne5 {[%clk 0:01:55.3]} 19. d4 {[%clk 0:02:12.5]}
19... Nc4 {[%clk 0:01:33.5]} 20. dxc5 {[%clk 0:02:10.6]} 20... Qc7 {[%clk
0:01:32.3]} 21. Bxa8 {[%clk 0:02:01.7]} 21... Rxa8 {[%clk 0:01:30.8]} 22. Qf2
{[%clk 0:01:57.4]} 22... Bc6 {[%clk 0:01:20.9]} 23. Rae1 {[%clk 0:01:53.8]}
23... Bb7 {[%clk 0:01:12]} 24. Bd4 {[%clk 0:01:52]} 24... e5 {[%clk 0:01:07.6]}
25. Bxe5 {[%clk 0:01:50.3]} 25... Nxe5 {[%clk 0:01:07.1]} 26. Rxe5 {[%clk
0:01:50.8]} 26... g6 {[%clk 0:00:31.1]} 27. Qf6 {[%clk 0:01:38.3]} 27... Qd8
{[%clk 0:00:12.1]} 28. Qf7+ {[%clk 0:01:31.7]} 28... Kh8 {[%clk 0:00:11.5]} 29.
Qxb7 {[%clk 0:01:32.3]} 1-0

[Event "Early-Titled-Tuesday-Blitz-October-10-2023"]
[Site "Chess.com"]
[Date "2023.10.10"]
[Round "2"]
[White "Emp3rador"]
[Black "VincentKeymer"]
[Result "0-1"]
[WhiteElo "2523"]
[BlackElo "3103"]
[TimeControl "180+1"]
[EndTime "8:16:15 PDT"]
[Termination "VincentKeymer won by resignation"]

1. e4 {[%clk 0:03:00.9]} 1... c6 {[%clk 0:02:59.8]} 2. d4 {[%clk 0:03:01]} 2...
d5 {[%clk 0:03:00.5]} 3. exd5 {[%clk 0:03:01.7]} 3... cxd5 {[%clk 0:03:01.4]} 4.
Bd3 {[%clk 0:03:01.8]} 4... Nf6 {[%clk 0:03:01.3]} 5. h3 {[%clk 0:03:02]} 5...
Nc6 {[%clk 0:03:01.5]} 6. Nf3 {[%clk 0:03:01.5]} 6... Nb4 {[%clk 0:03:01.9]} 7.
Bb5+ {[%clk 0:02:50.2]} 7... Bd7 {[%clk 0:03:01.1]} 8. Bxd7+ {[%clk 0:02:50.4]}
8... Qxd7 {[%clk 0:02:58.7]} 9. Ne5 {[%clk 0:02:42.4]} 9... Qf5 {[%clk
0:02:55.9]} 10. Na3 {[%clk 0:02:36.4]} 10... e6 {[%clk 0:02:47.4]} 11. O-O
{[%clk 0:02:01.4]} 11... Qh5 {[%clk 0:02:47.1]} 12. Qxh5 {[%clk 0:01:20.1]}
12... Nxh5 {[%clk 0:02:48]} 13. c3 {[%clk 0:01:20.6]} 13... Nc6 {[%clk 0:02:48]}
14. Nb5 {[%clk 0:01:21.4]} 14... Rc8 {[%clk 0:02:46.9]} 15. g4 {[%clk
0:01:16.8]} 15... Nf6 {[%clk 0:02:46.1]} 16. Bf4 {[%clk 0:01:17]} 16... a6
{[%clk 0:02:43.2]} 17. Nxc6 {[%clk 0:00:45.2]} 17... Rxc6 {[%clk 0:02:43.1]} 18.
Na7 {[%clk 0:00:31.3]} 18... Rb6 {[%clk 0:02:43.1]} 19. Bc7 {[%clk 0:00:20.2]}
19... Rxb2 {[%clk 0:02:41.1]} 20. Rfb1 {[%clk 0:00:19.7]} 20... Ba3 {[%clk
0:02:35.8]} 21. Rxb2 {[%clk 0:00:19.7]} 21... Bxb2 {[%clk 0:02:36.7]} 22. Rb1
{[%clk 0:00:20.4]} 22... Bxc3 {[%clk 0:02:36.9]} 23. Rxb7 {[%clk 0:00:21.1]}
23... O-O {[%clk 0:02:37.5]} 24. Nc6 {[%clk 0:00:17.6]} 24... h5 {[%clk
0:02:30.4]} 25. gxh5 {[%clk 0:00:15.8]} 25... Nxh5 {[%clk 0:02:27.7]} 26. Ra7
{[%clk 0:00:16.4]} 26... Kh7 {[%clk 0:02:21]} 27. Rxa6 {[%clk 0:00:15.5]} 27...
Rc8 {[%clk 0:02:21.3]} 28. Ra7 {[%clk 0:00:15.2]} 28... Nf6 {[%clk 0:02:15.3]}
29. Ne7 {[%clk 0:00:08.6]} 29... Rf8 {[%clk 0:02:12.1]} 30. Bd6 {[%clk 0:00:08]}
30... Bxd4 {[%clk 0:02:11.3]} 31. Nc6 {[%clk 0:00:08.1]} 31... Bxa7 {[%clk
0:02:09.4]} 32. Bxf8 {[%clk 0:00:08.8]} 32... Nd7 {[%clk 0:02:01.6]} 33. Nxa7
{[%clk 0:00:06.8]} 33... Nxf8 {[%clk 0:02:01.9]} 34. Nc6 {[%clk 0:00:07.6]}
34... Nd7 {[%clk 0:02:02.4]} 35. a4 {[%clk 0:00:08.3]} 35... Nc5 {[%clk
0:01:57.6]} 36. a5 {[%clk 0:00:07.9]} 36... Na6 {[%clk 0:01:57.8]} 37. Nd8
{[%clk 0:00:07.5]} 37... Kg6 {[%clk 0:01:57.4]} 38. Kf1 {[%clk 0:00:08.2]} 38...
Kf6 {[%clk 0:01:57.8]} 39. Ke2 {[%clk 0:00:08.9]} 39... Ke7 {[%clk 0:01:57.9]}
40. Nc6+ {[%clk 0:00:09.4]} 40... Kd6 {[%clk 0:01:57.4]} 41. Nd4 {[%clk
0:00:10]} 41... g6 {[%clk 0:01:55.9]} 42. Ke3 {[%clk 0:00:10.1]} 42... e5 {[%clk
0:01:56.5]} 43. Nf3 {[%clk 0:00:10.4]} 43... Nb4 {[%clk 0:01:54.2]} 44. Ng5
{[%clk 0:00:10.8]} 44... f6 {[%clk 0:01:54.5]} 45. Nh7 {[%clk 0:00:11]} 45...
Ke7 {[%clk 0:01:52.5]} 46. Nf8 {[%clk 0:00:11.7]} 46... Kxf8 {[%clk 0:01:52.6]}
0-1

[Event "Early-Titled-Tuesday-Blitz-October-10-2023"]
[Site "Chess.com"]
[Date "2023.10.10"]
[Round "2"]
[White "rasmussvane"]
[Black "crazy_m_attack"]
[Result "1-0"]
[WhiteElo "3004"]
[BlackElo "2409"]
[TimeControl "180+1"]
[EndTime "8:16:15 PDT"]
[Termination "rasmussvane won on time"]

1. Nf3 {[%clk 0:03:00.9]} 1... Nf6 {[%clk 0:02:59.7]} 2. g3 {[%clk 0:03:01.1]}
2... d5 {[%clk 0:02:59.2]} 3. Bg2 {[%clk 0:03:01.2]} 3... e6 {[%clk 0:02:58.7]}
4. O-O {[%clk 0:03:00.7]} 4... Be7 {[%clk 0:02:58.7]} 5. c4 {[%clk 0:03:00.8]}
5... O-O {[%clk 0:02:58.4]} 6. b3 {[%clk 0:03:01.1]} 6... d4 {[%clk 0:02:58.7]}
7. e3 {[%clk 0:03:01]} 7... c5 {[%clk 0:02:58.7]} 8. Ne5 {[%clk 0:03:01.2]} 8...
Nfd7 {[%clk 0:02:47.5]} 9. exd4 {[%clk 0:03:00.6]} 9... cxd4 {[%clk 0:02:46.9]}
10. Nxd7 {[%clk 0:02:59.9]} 10... Nxd7 {[%clk 0:02:37.4]} 11. d3 {[%clk
0:02:59]} 11... a5 {[%clk 0:02:31.9]} 12. Ba3 {[%clk 0:02:58.8]} 12... Bb4
{[%clk 0:02:26.1]} 13. Qe2 {[%clk 0:02:37.9]} 13... Re8 {[%clk 0:01:59]} 14. Bb2
{[%clk 0:02:28.2]} 14... e5 {[%clk 0:01:56.3]} 15. a3 {[%clk 0:02:28.2]} 15...
Bd6 {[%clk 0:01:44.2]} 16. Nd2 {[%clk 0:02:27.9]} 16... Qb6 {[%clk 0:01:16.7]}
17. Rfe1 {[%clk 0:02:09.1]} 17... Nf6 {[%clk 0:00:45.5]} 18. Rab1 {[%clk
0:01:56.4]} 18... Bg4 {[%clk 0:00:43.3]} 19. Bf3 {[%clk 0:01:55.5]} 19... Bf5
{[%clk 0:00:38.8]} 20. Ne4 {[%clk 0:01:42.1]} 20... Bxe4 {[%clk 0:00:14.5]} 21.
Bxe4 {[%clk 0:01:43]} 21... Nxe4 {[%clk 0:00:11.9]} 22. Qxe4 {[%clk 0:01:43]}
22... Qc6 {[%clk 0:00:07.4]} 23. g4 {[%clk 0:01:15.7]} 1-0